bitfinex/quotes_BTCUSD_20241223
["timestamp","ask_amount","ask_price","bid_price","bid_amount"]
[1734968718781,7.996e-05,93480.0,93479.0,0.002]
[1734968718937,7.996e-05,93480.0,93479.0,0.00306954]
[1734968719343,7.996e-05,93480.0,93479.0,0.00106954]
[1734968719551,0.096789,93501.0,93479.0,0.00106954]
[1734968719758,0.09686908,93501.0,93479.0,0.00106954]
[1734968719954,0.09686908,93501.0,93481.0,0.213947]
[1734968720159,0.09686908,93501.0,93498.0,0.213907]
[1734968720160,8.008e-05,93501.0,93498.0,0.213907]
[1734968720525,8.008e-05,93501.0,93500.0,0.292703]
[1734968720732,8.008e-05,93501.0,93500.0,0.315703]
[1734968720955,8.008e-05,93501.0,93500.0,0.52367564]
[1734968721184,8.008e-05,93501.0,93500.0,0.57277564]
[1734968721404,8e-08,93501.0,93500.0,1.31177564]
[1734968721606,0.09325817,93531.0,93530.0,0.213835]
[1734968721816,0.09379275,93531.0,93530.0,0.213835]
[1734968722027,0.00053458,93531.0,93530.0,0.213835]
[1734968722227,0.00053458,93531.0,93530.0,0.31782132]
[1734968722380,0.00053458,93531.0,93530.0,0.38990332]
[1734968722591,0.00053458,93531.0,93530.0,0.41290332]
[1734968722797,0.001,93531.0,93530.0,0.59320332]
[1734968723150,0.08144197,93561.0,93530.0,0.18428632]
[1734968723353,0.08144197,93561.0,93488.0,0.21393]
[1734968723354,0.00016034,93553.0,93514.0,0.389]
[1734968723570,0.10398632,93552.0,93517.0,0.0793]
[1734968723783,0.10398632,93552.0,93530.0,0.002]
[1734968723988,0.001,93531.0,93530.0,0.215835]
[1734968724199,0.001,93531.0,93530.0,0.31982132]
[1734968724409,0.001,93531.0,93530.0,0.002]
[1734968725047,0.001,93531.0,93513.0,0.02136432]
[1734968725048,0.15,93530.0,93513.0,0.02136432]
[1734968725250,0.21394434,93553.0,93500.0,0.31788932]
[1734968725251,0.10398632,93529.0,93500.0,0.31788932]
[1734968725453,0.213857,93521.0,93498.0,0.0488]
[1734968725658,0.213856,93521.0,93499.0,0.213906]
[1734968725863,0.10398632,93529.0,93499.0,0.213906]
[1734968726064,0.13576825,93529.0,93500.0,0.00106931]
[1734968726264,0.213841,93527.0,93500.0,0.00106931]
[1734968726476,0.213855,93522.0,93500.0,0.00106931]
[1734968726677,0.10398632,93527.0,93500.0,0.00106931]
[1734968726887,0.10398632,93527.0,93500.0,0.00160389]
[1734968726888,0.213855,93522.0,93500.0,0.00160389]
[1734968727097,0.213846,93525.0,93501.0,0.213901]
[1734968727465,0.15,93526.0,93500.0,0.00053458]
[1734968727675,0.21385,93524.0,93500.0,0.00053458]
[1734968727867,0.21385,93524.0,93501.0,0.06087102]
[1734968728341,0.21385,93524.0,93500.0,0.00053458]
[1734968728727,0.003,93522.0,93498.0,0.10398632]
[1734968728959,0.00053415,93522.0,93498.0,0.10398632]
[1734968729154,0.00053415,93522.0,93499.0,0.21497331]
[1734968729461,0.00053415,93522.0,93499.0,0.213904]
[1734968729636,0.00053415,93522.0,93500.0,0.06177934]
[1734968729870,0.00053415,93522.0,93498.0,0.10398632]
[1734968730043,0.213855,93521.0,93498.0,0.10398632]
[1734968730853,0.15,93514.0,93489.0,0.02132419]
[1734968731055,0.213899,93502.0,93482.0,0.0787]
[1734968731263,0.427798,93502.0,93482.0,0.0787]
[1734968731470,0.213912,93497.0,93482.0,0.0787]
[1734968731671,0.213912,93497.0,93471.0,0.23592234]
[1734968731672,0.213912,93497.0,93471.0,0.213968]
[1734968731882,0.213912,93497.0,93475.0,0.213958]
[1734968732090,0.213912,93497.0,93472.0,0.31795332]
[1734968732737,0.214912,93497.0,93472.0,0.31795332]
[1734968732875,0.214912,93497.0,93472.0,0.35980676]
[1734968733078,0.003,93497.0,93472.0,0.10398632]
[1734968733280,0.153,93497.0,93472.0,0.10398632]
[1734968733478,0.213912,93496.0,93473.0,0.42899959]
[1734968733687,0.213896,93504.0,93473.0,0.213965]
[1734968733688,0.15,93495.0,93473.0,0.213965]
[1734968733888,0.15,93495.0,93474.0,0.00106959]
[1734968734073,0.363916,93495.0,93474.0,0.00106959]
[1734968734269,0.15,93495.0,93476.0,0.213958]
[1734968735161,0.00106959,93494.0,93469.0,0.1278]
[1734968735309,0.10398632,93493.0,93467.0,0.02153035]
[1734968735517,0.1,93488.0,93444.0,0.0815]
[1734968735741,0.15,93465.0,93441.0,8.55e-05]
[1734968735900,0.213981,93466.0,93441.0,8.55e-05]
[1734968735901,0.33355591,93464.0,93441.0,8.55e-05]
[1734968736097,0.54647232,93464.0,93441.0,8.55e-05]
[1734968736517,0.54647232,93464.0,93463.0,0.00024584]
[1734968736717,0.59307232,93464.0,93463.0,0.00024584]
[1734968737329,0.59607232,93464.0,93463.0,0.00024584]
[1734968737532,0.59307232,93464.0,93463.0,0.00024584]
[1734968738432,0.69307232,93464.0,93463.0,0.00024584]
[1734968738797,0.15,93441.0,93421.0,0.00368704]
[1734968738976,0.165,93441.0,93440.0,8.008e-05]
[1734968739331,0.15,93441.0,93440.0,8.008e-05]
[1734968739715,0.25398632,93441.0,93440.0,8.008e-05]
[1734968740349,0.25698632,93441.0,93440.0,8.008e-05]
[1734968740523,0.33688632,93441.0,93440.0,8.008e-05]
[1734968740702,0.25498632,93441.0,93440.0,8.008e-05]
[1734968740906,0.01,93441.0,93440.0,8.008e-05]
[1734968741108,0.01,93441.0,93440.0,0.02202787]
[1734968741311,0.01,93441.0,93440.0,0.0291142]
[1734968741517,0.01,93441.0,93440.0,0.00770189]
[1734968741717,0.01,93441.0,93440.0,0.11168806]
[1734968741904,0.01,93441.0,93440.0,0.52315273]
[1734968742096,0.009,93441.0,93440.0,0.52315273]
[1734968742499,0.213926,93490.0,93473.0,0.213963]
[1734968742702,0.10398632,93489.0,93473.0,0.213963]
[1734968742902,0.10398632,93489.0,93470.0,0.213971]
[1734968743312,0.21526818,93488.0,93468.0,0.213975]
[1734968743516,0.10398632,93487.0,93468.0,0.139975]
[1734968743713,0.10398632,93487.0,93468.0,8.008e-05]
[1734968743714,0.36527218,93486.0,93468.0,8.008e-05]
[1734968743939,0.363935,93486.0,93468.0,8.008e-05]
[1734968744135,0.00133718,93485.0,93468.0,0.24313603]
[1734968744349,0.15,93486.0,93473.0,0.213965]
[1734968744578,0.15,93486.0,93468.0,0.24313603]
[1734968744769,0.15133718,93486.0,93468.0,0.24313603]
[1734968745021,0.15133718,93486.0,93468.0,0.45711203]
[1734968745224,0.15,93486.0,93470.0,0.213972]
[1734968745512,0.10398632,93487.0,93468.0,8.008e-05]
[1734968745513,0.15,93483.0,93468.0,8.008e-05]
[1734968745733,0.15133718,93483.0,93468.0,0.00016548]
[1734968745913,0.15,93481.0,93468.0,0.00016548]
[1734968746213,0.15,93481.0,93468.0,0.21414148]
[1734968746795,0.002,93486.0,93468.0,0.00016548]
[1734968746796,0.15,93483.0,93468.0,0.00016548]
[1734968746998,0.00133721,93482.0,93468.0,0.00016548]
[1734968747205,0.00133721,93482.0,93468.0,0.21414048]
[1734968747379,0.00133721,93482.0,93468.0,0.00016548]
[1734968747628,0.001,93481.0,93468.0,0.00016548]
[1734968748781,0.001,93481.0,93464.0,0.213985]
[1734968749546,0.00133721,93482.0,93464.0,0.213985]
[1734968749751,0.00133721,93482.0,93463.0,7.996e-05]
[1734968750067,0.1501708,93499.0,93481.0,0.213945]
[1734968750286,0.001,93482.0,93481.0,0.213945]
[1734968750457,0.001,93482.0,93478.0,0.213952]
[1734968750655,0.001,93482.0,93464.0,0.10398632]
[1734968750656,0.001,93481.0,93476.0,0.213958]
[1734968750859,0.10398632,93481.0,93463.0,7.996e-05]
[1734968751039,0.213954,93478.0,93463.0,7.996e-05]
[1734968751240,0.10398632,93477.0,93463.0,7.996e-05]
[1734968751456,0.10398632,93477.0,93464.0,0.2353932]
[1734968752061,0.001,93481.0,93464.0,0.0214072]
[1734968752275,0.001,93481.0,93472.0,0.213966]
[1734968752479,0.001,93481.0,93479.0,0.21395]
[1734968752689,0.001,93481.0,93465.0,0.213983]
[1734968752991,0.001,93481.0,93463.0,7.996e-05]
[1734968753182,0.213961,93475.0,93463.0,7.996e-05]
[1734968753386,0.03212846,93474.0,93463.0,7.996e-05]
[1734968753587,0.03212846,93474.0,93450.0,4e-05]
[1734968753719,0.00133731,93478.0,93463.0,0.001]
[1734968753937,0.10398632,93478.0,93465.0,0.002]
[1734968754335,0.10398632,93478.0,93461.0,0.213992]
[1734968754527,0.10398632,93478.0,93463.0,0.001]
[1734968755006,0.003,93478.0,93463.0,0.001]
[1734968755247,0.003,93478.0,93469.0,0.213974]
[1734968755855,0.003,93478.0,93470.0,0.213972]
[1734968756055,0.003,93478.0,93464.0,0.427969]
[1734968756183,0.003,93478.0,93468.0,0.213975]
[1734968756390,0.15,93476.0,93458.0,0.427997]
[1734968756594,0.15,93476.0,93462.0,0.213989]
[1734968756795,0.15,93476.0,93463.0,0.001]
[1734968757017,0.15,93476.0,93462.0,0.213989]
[1734968757178,0.21529728,93475.0,93458.0,0.213997]
[1734968757378,0.03191652,93474.0,93468.0,0.001]
[1734968757696,0.25398632,93476.0,93462.0,0.213988]
[1734968757908,0.25398632,93476.0,93464.0,0.213986]
[1734968758103,0.25398632,93476.0,93468.0,8.55e-05]
[1734968758306,0.21529734,93475.0,93468.0,8.55e-05]
[1734968758481,0.15,93474.0,93468.0,8.55e-05]
[1734968758718,0.15133734,93474.0,93455.0,0.214006]
[1734968758963,0.15,93474.0,93460.0,0.213993]
[1734968759703,0.15,93475.0,93468.0,0.001]
[1734968759903,0.15,93475.0,93460.0,0.213993]
[1734968760319,0.00333734,93474.0,93454.0,0.02120503]
[1734968760525,0.214014,93452.0,93450.0,4e-05]
[1734968760728,0.00133757,93451.0,93450.0,4e-05]
[1734968760933,0.36399,93462.0,93450.0,4e-05]
[1734968761136,0.363995,93460.0,93450.0,4e-05]
[1734968761340,0.25398632,93460.0,93450.0,4e-05]
[1734968762174,0.00133756,93459.0,93450.0,4e-05]
[1734968762382,0.15,93458.0,93450.0,4e-05]
[1734968762581,0.214011,93453.0,93450.0,4e-05]
[1734968762763,0.364015,93451.0,93450.0,4e-05]
[1734968763019,0.46800132,93451.0,93450.0,0.00304]
[1734968763426,0.46800132,93451.0,93450.0,4e-05]
[1734968763660,0.46800132,93451.0,93428.0,0.214067]
[1734968763661,0.15,93450.0,93428.0,0.172106]
[1734968763853,0.15,93445.0,93428.0,0.17226596]
[1734968764552,0.15,93445.0,93432.0,0.214057]
[1734968764765,0.15,93445.0,93436.0,0.214049]
[1734968764974,0.15,93455.0,93436.0,0.428099]
[1734968765196,0.15,93453.0,93437.0,0.00053552]
[1734968765466,0.213985,93465.0,93437.0,0.00053552]
[1734968765467,0.0829,93479.0,93452.0,0.214011]
[1734968765683,0.213936,93486.0,93468.0,0.213975]
[1734968765888,0.00133721,93485.0,93461.0,0.213991]
[1734968766095,0.00133721,93485.0,93465.0,0.213982]
[1734968766765,0.00133721,93485.0,93456.0,0.214003]
[1734968766766,0.213949,93480.0,93456.0,0.214003]
[1734968766980,0.00010283,93480.0,93456.0,0.31798932]
[1734968767201,0.00010283,93480.0,93468.0,0.213976]
[1734968767418,0.00010283,93480.0,93456.0,0.10398632]
[1734968767658,0.00010283,93480.0,93460.0,0.023]
[1734968767918,0.00010283,93480.0,93462.0,0.023]
[1734968768137,0.00010283,93480.0,93464.0,0.023]
[1734968768346,0.00010283,93480.0,93475.0,0.427919]
[1734968768549,0.00010283,93480.0,93477.0,0.213956]
[1734968768975,0.00010283,93480.0,93477.0,0.427912]
[1734968769179,0.00010283,93480.0,93478.0,0.01954398]
[1734968769383,0.00010283,93480.0,93479.0,0.213951]
[1734968770039,0.00110283,93480.0,93477.0,0.004]
[1734968770250,0.00110283,93480.0,93459.0,0.0487]
[1734968770251,0.00110283,93480.0,93462.0,0.21399]
[1734968770508,0.15,93478.0,93451.0,0.214015]
[1734968770727,0.15,93478.0,93450.0,8.55e-05]
[1734968770728,0.15,93474.0,93452.0,0.21454799]
[1734968770933,0.15,93472.0,93452.0,0.214013]
[1734968771138,0.15,93472.0,93454.0,0.214009]
[1734968771549,0.0363956,93471.0,93454.0,0.214009]
[1734968771760,0.0363956,93471.0,93451.0,0.10398632]
[1734968771761,0.0013373,93470.0,93452.0,0.214013]
[1734968771979,0.15,93468.0,93451.0,0.001]
[1734968772147,0.15,93458.0,93451.0,0.001]
[1734968772592,0.00787738,93478.0,93454.0,0.001]
[1734968772843,0.0785,93479.0,93455.0,0.10452135]
[1734968773056,0.00010283,93480.0,93455.0,0.10452135]
[1734968773057,0.00010283,93480.0,93474.0,0.213962]
[1734968773388,0.00010283,93480.0,93470.0,0.213971]
[1734968773969,0.00010283,93480.0,93477.0,0.213956]
[1734968774178,0.00010283,93480.0,93457.0,0.389]
[1734968774390,0.00010283,93480.0,93462.0,0.02138768]
[1734968774590,0.00010283,93480.0,93463.0,0.10398632]
[1734968774998,0.00010283,93480.0,93462.0,0.02138768]
[1734968775610,0.003,93479.0,93462.0,0.23537768]
[1734968775832,0.00010283,93480.0,93462.0,0.02138768]
[1734968776063,0.00010283,93480.0,93464.0,0.213986]
[1734968776252,0.00010283,93480.0,93466.0,0.213981]
[1734968776465,0.00010283,93480.0,93463.0,0.213988]
[1734968776661,0.00144006,93480.0,93463.0,0.213988]
[1734968776879,0.213954,93478.0,93462.0,0.001]
[1734968777124,0.07834006,93480.0,93462.0,0.001]
[1734968777125,0.15,93476.0,93463.0,0.001]
[1734968777238,0.363986,93464.0,93463.0,0.001]
[1734968777440,0.46797232,93464.0,93463.0,0.001]
[1734968777637,0.15,93463.0,93462.0,0.001]
[1734968777840,0.5328739,93463.0,93462.0,0.001]
[1734968778064,0.5328739,93463.0,93450.0,8.55e-05]
[1734968778065,0.25,93459.0,93450.0,8.55e-05]
[1734968778269,0.3553242,93458.0,93450.0,8.55e-05]
[1734968778468,0.364015,93451.0,93450.0,8.55e-05]
[1734968778680,0.15,93436.0,93419.0,0.02161885]
[1734968778875,0.00133789,93435.0,93419.0,0.02161885]
[1734968779539,0.15,93436.0,93420.0,0.214086]
[1734968779736,0.15,93436.0,93420.0,0.214085]
[1734968779737,0.0001427,93436.0,93420.0,0.214085]
[1734968779935,0.0011427,93436.0,93426.0,0.214073]
[1734968780793,0.0011427,93436.0,93434.0,0.214052]
[1734968780999,0.0011427,93436.0,93435.0,0.10452175]
[1734968781203,0.0011427,93436.0,93435.0,0.15082175]
[1734968781408,0.0011427,93436.0,93435.0,0.15028632]
[1734968781587,0.0001427,93436.0,93432.0,0.214059]
[1734968782020,0.0001427,93436.0,93431.0,0.02101475]
[1734968782432,0.0001427,93436.0,93426.0,0.002]
[1734968782634,0.0011427,93436.0,93435.0,0.002]
[1734968783061,0.0001427,93436.0,93426.0,0.002]
[1734968783268,0.0011427,93436.0,93431.0,0.002]
[1734968783476,0.0011427,93436.0,93424.0,0.02121211]
[1734968783477,0.0011427,93436.0,93432.0,0.214058]
[1734968783678,0.0011427,93436.0,93424.0,0.23528911]
[1734968783890,0.0011427,93436.0,93435.0,0.003]
[1734968784273,0.0011427,93436.0,93431.0,0.21406]
[1734968784789,0.0011427,93436.0,93432.0,0.002]
[1734968785040,0.0011427,93436.0,93435.0,0.001]
[1734968785253,0.0001427,93436.0,93424.0,0.02121211]
[1734968785532,0.0001427,93436.0,93431.0,0.002]
[1734968785736,0.0001427,93436.0,93431.0,0.006]
[1734968785935,0.0001427,93436.0,93431.0,0.002]
[1734968786138,0.0001427,93436.0,93435.0,0.004]
[1734968786546,0.0001427,93436.0,93431.0,0.002]
[1734968786753,0.0001427,93436.0,93431.0,0.006]
[1734968787369,0.0001427,93436.0,93431.0,0.21806]
[1734968787575,0.0001427,93436.0,93432.0,0.18072189]
[1734968787770,0.0001427,93436.0,93435.0,0.002]
[1734968787978,0.0001427,93436.0,93435.0,0.10652169]
[1734968788394,0.0001427,93436.0,93435.0,0.10452169]
[1734968788599,0.0001427,93436.0,93435.0,0.00053537]
[1734968789001,0.0001427,93436.0,93435.0,0.217052]
[1734968789386,0.0001427,93436.0,93435.0,0.214052]
[1734968789603,0.0011427,93436.0,93435.0,0.223052]
[1734968790542,0.0011427,93436.0,93435.0,0.220052]
[1734968790749,0.0011427,93436.0,93435.0,0.32403832]
[1734968790957,0.0011427,93436.0,93435.0,0.45102464]
[1734968791169,0.0001427,93436.0,93435.0,0.44502464]
[1734968791382,0.0001427,93436.0,93435.0,0.44902464]
[1734968791583,0.0001427,93436.0,93435.0,0.47787464]
[1734968791913,0.0001427,93436.0,93435.0,0.36988832]
[1734968792129,0.0011427,93436.0,93435.0,0.35488832]
[1734968792332,0.0011427,93436.0,93435.0,0.247902]
[1734968792742,0.0021427,93436.0,93435.0,0.256902]
[1734968792946,0.0011427,93436.0,93435.0,0.247902]
[1734968793204,0.0011427,93436.0,93435.0,0.04285]
[1734968793440,0.0021427,93436.0,93435.0,0.04285]
[1734968793636,0.02376087,93436.0,93435.0,8.55e-05]
[1734968793839,0.02276087,93436.0,93435.0,8.55e-05]
[1734968794038,0.17276087,93436.0,93435.0,0.0040855]
[1734968794245,0.1511427,93436.0,93435.0,0.0040855]
[1734968795071,0.0001427,93436.0,93435.0,8.55e-05]
[1734968795277,0.0001427,93436.0,93435.0,0.0010855]
[1734968795810,0.0021427,93436.0,93435.0,0.0010855]
[1734968796429,0.0021427,93436.0,93435.0,0.0020855]
[1734968796790,0.0001427,93436.0,93435.0,0.0020855]
[1734968797036,0.0001427,93436.0,93435.0,8.55e-05]
[1734968797442,0.02356087,93436.0,93435.0,8.55e-05]
[1734968797645,0.0021427,93436.0,93435.0,8.55e-05]
[1734968797858,0.0001427,93436.0,93435.0,8.55e-05]
[1734968798064,0.0011427,93436.0,93435.0,8.55e-05]
[1734968798331,0.0011427,93436.0,93435.0,0.0010855]
[1734968798532,0.0011427,93436.0,93435.0,8.55e-05]
[1734968798733,0.0001427,93436.0,93415.0,0.02118877]
[1734968798920,0.0011427,93436.0,93424.0,0.214076]
[1734968800245,0.0001427,93436.0,93421.0,0.214083]
[1734968800396,0.0001427,93436.0,93425.0,0.214074]
[1734968800821,0.0001427,93436.0,93416.0,0.214096]
[1734968801019,0.0001427,93436.0,93420.0,0.214086]
[1734968801249,0.0001427,93436.0,93421.0,0.214084]
[1734968801658,0.0001427,93436.0,93424.0,0.002]
[1734968801868,0.0001427,93436.0,93421.0,0.214084]
[1734968802116,0.0001427,93436.0,93424.0,0.214075]
[1734968802306,0.0021427,93436.0,93424.0,0.214075]
[1734968802461,0.0011427,93436.0,93426.0,0.214073]
[1734968802656,0.0011427,93436.0,93425.0,0.00759281]
[1734968803302,0.0013379,93435.0,93415.0,0.214098]
[1734968803542,0.10398632,93434.0,93414.0,0.02099806]
[1734968803668,0.15133801,93433.0,93413.0,0.214102]
[1734968803873,0.15,93431.0,93415.0,0.0295305]
[1734968804093,0.25398632,93431.0,93415.0,0.02189292]
[1734968804297,0.15,93431.0,93424.0,0.001]
[1734968804719,0.15,93431.0,93420.0,0.214085]
[1734968804720,0.15,93431.0,93425.0,0.0075981]
[1734968804929,0.0001427,93436.0,93425.0,0.0075981]
[1734968805268,0.00148061,93436.0,93416.0,0.214094]
[1734968805473,0.00148061,93436.0,93425.0,8.55e-05]
[1734968805674,0.00165161,93436.0,93425.0,8.55e-05]
[1734968806295,0.00265161,93436.0,93425.0,8.55e-05]
[1734968806501,0.0013137,93436.0,93425.0,8.55e-05]
[1734968806717,0.214054,93434.0,93425.0,8.55e-05]
[1734968806925,0.31803932,93435.0,93425.0,8.55e-05]
[1734968806926,0.15,93431.0,93425.0,8.55e-05]
[1734968807135,0.00133796,93430.0,93425.0,8.55e-05]
[1734968808166,0.00133796,93430.0,93425.0,0.0010855]
[1734968808429,0.00133796,93433.0,93425.0,0.0030855]
[1734968808621,0.00133796,93433.0,93407.0,0.23576067]
[1734968808781,0.00133796,93433.0,93409.0,0.02466863]
[1734968808989,0.0003137,93436.0,93425.0,0.001]
[1734968809186,0.00080183,93435.0,93425.0,0.001]
[1734968809515,0.00080183,93435.0,93425.0,0.002]
[1734968809728,0.0003137,93436.0,93425.0,0.002]
[1734968809929,0.0758,93427.0,93425.0,0.002]
[1734968810161,0.13377505,93426.0,93425.0,0.002]
[1734968810542,0.10478815,93426.0,93425.0,0.001]
[1734968810836,0.31886115,93426.0,93425.0,0.001]
[1734968811062,0.15,93425.0,93408.0,8.55e-05]
[1734968811260,0.0758,93427.0,93408.0,8.55e-05]
[1734968811261,0.10478815,93424.0,93408.0,8.55e-05]
[1734968811466,0.214106,93412.0,93408.0,8.55e-05]
[1734968811666,0.214109,93410.0,93408.0,8.55e-05]
[1734968811890,0.08240183,93409.0,93408.0,8.55e-05]
[1734968813372,0.214096,93416.0,93408.0,8.55e-05]
[1734968813711,0.123,93423.0,93400.0,4e-05]
[1734968813712,0.29048,93423.0,93400.0,4e-05]
[1734968813826,0.00080183,93422.0,93400.0,4e-05]
[1734968814081,0.214084,93421.0,93400.0,4e-05]
[1734968814290,0.002,93409.0,93400.0,4e-05]
[1734968814534,0.006,93409.0,93400.0,4e-05]
[1734968814901,0.214084,93421.0,93400.0,4e-05]
[1734968815312,0.002,93421.0,93400.0,4e-05]
[1734968815507,0.214101,93414.0,93400.0,4e-05]
[1734968815706,0.214086,93420.0,93400.0,4e-05]
[1734968817345,0.428179,93419.0,93400.0,4e-05]
[1734968817506,0.001,93414.0,93400.0,4e-05]
[1734968817710,0.214112,93409.0,93400.0,4e-05]
[1734968818026,0.214112,93409.0,93408.0,8.55e-05]
[1734968818661,0.214106,93412.0,93381.0,0.24960517]
[1734968818877,0.00080183,93411.0,93387.0,0.10398632]
[1734968819081,0.00080183,93411.0,93400.0,0.001]
[1734968819228,0.290481,93423.0,93400.0,0.001]
[1734968819626,0.21409,93419.0,93400.0,0.001]
[1734968819783,0.00080183,93418.0,93400.0,0.001]
[1734968819971,0.15,93422.0,93400.0,0.001]
[1734968820180,0.15,93420.0,93400.0,0.001]
[1734968820529,0.214064,93430.0,93401.0,0.10505688]
[1734968820737,0.214068,93428.0,93402.0,0.214127]
[1734968820935,0.001,93412.0,93404.0,0.214123]
[1734968821145,0.003,93411.0,93405.0,0.10398632]
[1734968821550,0.003,93411.0,93406.0,0.21518946]
[1734968821756,0.003,93411.0,93407.0,0.10398632]
[1734968821962,0.01110016,93430.0,93408.0,0.00107046]
[1734968822166,0.004,93420.0,93412.0,0.214104]
[1734968822377,0.004,93420.0,93413.0,0.10398632]
[1734968822580,0.00080183,93429.0,93413.0,0.10398632]
[1734968823665,0.00080183,93429.0,93402.0,0.462]
[1734968823837,0.00080183,93429.0,93403.0,0.10398632]
[1734968824073,0.21407,93427.0,93402.0,0.462]
[1734968824280,0.0816,93424.0,93402.0,0.462]
[1734968824488,0.0816,93424.0,93382.0,0.09597341]
[1734968824489,0.15,93412.0,93382.0,0.09597341]
[1734968824702,0.214149,93393.0,93382.0,0.09597341]
[1734968824912,0.15,93410.0,93382.0,0.09704425]
[1734968825133,0.15,93399.0,93382.0,0.09597341]
[1734968825336,0.15,93399.0,93383.0,0.00107074]
[1734968825545,0.00080183,93398.0,93382.0,0.09597341]
[1734968825760,0.00080183,93403.0,93383.0,0.00107074]
[1734968825975,0.04290368,93403.0,93386.0,0.00061863]
[1734968826176,0.214116,93408.0,93386.0,0.00061863]
[1734968826386,0.217107,93412.0,93386.0,0.00061863]
[1734968826593,0.003,93412.0,93387.0,0.10398632]
[1734968826794,0.003,93412.0,93389.0,0.214157]
[1734968826999,0.00080183,93411.0,93391.0,0.214153]
[1734968827199,0.005,93410.0,93392.0,0.10398632]
[1734968827503,0.003,93412.0,93393.0,0.214148]
[1734968827685,0.214119,93406.0,93386.0,0.00061863]
[1734968827890,0.214123,93404.0,93387.0,0.10398632]
[1734968828092,0.001,93403.0,93387.0,0.10398632]
[1734968828337,0.00180183,93403.0,93387.0,0.10398632]
[1734968828690,0.15,93405.0,93387.0,0.00107069]
[1734968828872,0.15,93405.0,93388.0,0.21416]
[1734968829074,0.002,93406.0,93386.0,0.00061863]
[1734968829271,0.15,93404.0,93387.0,0.00107069]
[1734968829481,0.00080183,93403.0,93386.0,0.00061863]
[1734968829701,0.15,93404.0,93387.0,0.00107069]
[1734968829902,0.214092,93418.0,93391.0,0.214152]
[1734968830155,0.15,93410.0,93392.0,0.00107061]
[1734968830358,0.00080183,93409.0,93386.0,0.00061863]
[1734968830502,0.15,93406.0,93386.0,0.10460495]
[1734968830708,0.002,93403.0,93389.0,8.56e-05]
[1734968831221,0.003,93403.0,93389.0,8.56e-05]
[1734968831422,0.214073,93426.0,93390.0,0.10398632]
[1734968831627,0.002,93409.0,93391.0,0.01153968]
[1734968831964,0.002,93403.0,93395.0,0.294042]
[1734968832298,0.214084,93421.0,93395.0,0.294042]
[1734968832507,0.001,93403.0,93395.0,0.294042]
[1734968832708,0.001,93403.0,93395.0,0.0799]
[1734968832982,0.001,93403.0,93395.0,0.08097061]
[1734968833090,0.003,93403.0,93395.0,0.08097061]
[1734968833291,0.003,93403.0,93396.0,0.10398632]
[1734968833513,0.003,93403.0,93402.0,0.261328]
[1734968833712,0.002,93403.0,93402.0,0.15118632]
[1734968833918,0.002,93403.0,93402.0,0.36638471]
[1734968834122,0.002,93403.0,93402.0,0.36531432]
[1734968834523,0.00810016,93430.0,93410.0,0.214108]
[1734968834725,0.214054,93435.0,93411.0,0.10398632]
[1734968834929,0.214034,93443.0,93417.0,0.214093]
[1734968835143,0.09383248,93456.0,93418.0,0.18508632]
[1734968835353,0.09383248,93456.0,93418.0,0.67115643]
[1734968835566,0.09383248,93456.0,93430.0,0.214064]
[1734968835771,0.09383248,93456.0,93430.0,0.34105032]
[1734968836190,0.09383248,93461.0,93430.0,0.34121028]
[1734968836396,0.09383248,93461.0,93430.0,0.4451966]
[1734968836599,0.09383248,93461.0,93430.0,0.00015996]
[1734968836600,0.214021,93449.0,93430.0,0.00015996]
[1734968836801,0.214058,93433.0,93430.0,0.00015996]
[1734968837453,0.15,93432.0,93430.0,0.00015996]
[1734968838024,0.25415732,93431.0,93430.0,0.00015996]
[1734968838225,0.25415732,93431.0,93430.0,0.00115996]
[1734968838488,0.25515732,93431.0,93430.0,0.00215996]
[1734968838713,0.364064,93430.0,93391.0,0.214153]
[1734968838909,0.15,93430.0,93407.0,0.0001605]
[1734968839111,0.15,93424.0,93407.0,0.0001605]
[1734968839371,0.15,93422.0,93407.0,0.0001605]
[1734968839592,0.10398632,93421.0,93407.0,0.0001605]
[1734968839793,0.15,93413.0,93407.0,0.0001605]
[1734968839971,0.214105,93412.0,93407.0,0.0001605]
[1734968840127,0.15,93411.0,93407.0,0.0001605]
[1734968840736,0.214114,93408.0,93407.0,0.0001605]
[1734968840930,0.31810032,93408.0,93407.0,0.0001605]
[1734968841539,0.3395305,93408.0,93407.0,0.0001605]
[1734968841738,0.31810032,93408.0,93407.0,0.0001605]
[1734968841921,0.32710032,93408.0,93407.0,0.0001605]
[1734968842326,0.36667674,93408.0,93407.0,0.0001605]
[1734968842694,0.52567674,93408.0,93407.0,0.0001605]
[1734968842898,0.71667674,93408.0,93407.0,0.0001605]
[1734968843216,0.72467674,93408.0,93407.0,5e-07]
[1734968843435,0.364155,93390.0,93389.0,8.56e-05]
[1734968843613,0.58817552,93390.0,93379.0,1.33079732]
[1734968843835,0.58817552,93390.0,93379.0,1.25762715]
[1734968843836,0.15,93380.0,93379.0,1.25762715]
[1734968844017,0.25398632,93380.0,93379.0,1.25762715]
[1734968844443,0.40202937,93380.0,93379.0,0.00078125]
[1734968844594,0.15,93373.0,93336.0,0.09597341]
[1734968844802,0.15,93371.0,93337.0,0.00107124]
[1734968844978,0.25398632,93371.0,93337.0,0.00107124]
[1734968845972,0.25598632,93371.0,93337.0,0.00107124]
[1734968846207,0.27602052,93371.0,93336.0,0.047]
[1734968846415,0.27602052,93371.0,93337.0,0.00107126]
[1734968847898,0.27702052,93371.0,93337.0,0.00107126]
[1734968848238,0.27502052,93371.0,93370.0,0.02919009]
[1734968848592,0.27702052,93371.0,93336.0,0.0480712]
[1734968848789,0.214219,93363.0,93336.0,0.047]
[1734968850258,0.214219,93363.0,93337.0,0.00107126]
[1734968850391,0.214219,93363.0,93336.0,0.047]
[1734968851039,0.214219,93363.0,93359.0,0.0011927]
[1734968851877,0.214214,93365.0,93359.0,0.0011927]
[1734968852076,0.428428,93365.0,93359.0,0.0011927]
[1734968852501,0.214214,93365.0,93359.0,0.0011927]
[1734968853047,0.214189,93376.0,93359.0,0.0011927]
[1734968853275,0.214201,93370.0,93359.0,0.0011927]
[1734968853474,0.214215,93364.0,93359.0,0.0011927]